[Event "Late-Titled-Tuesday-Blitz-May-28-2024"]
[Site "Chess.com"]
[Date "2024.05.28"]
[Round "9"]
[White "nitpicker"]
[Black "dolynachess"]
[Result "0-1"]
[WhiteElo "2306"]
[BlackElo "2514"]
[TimeControl "180+1"]
[EndTime "15:44:57 PDT"]
[Termination "dolynachess won by checkmate"]

1. d4 {[%clk 0:03:00.9]} 1... Nf6 {[%clk 0:02:59.8]} 2. c4 {[%clk 0:03:00.9]}
2... c5 {[%clk 0:03:00.7]} 3. d5 {[%clk 0:03:00.5]} 3... b5 {[%clk 0:03:00.4]}
4. cxb5 {[%clk 0:03:00.3]} 4... a6 {[%clk 0:03:00.9]} 5. e3 {[%clk 0:02:59.9]}
5... g6 {[%clk 0:03:01.1]} 6. Nc3 {[%clk 0:02:59]} 6... Bg7 {[%clk 0:03:02]} 7.
a4 {[%clk 0:02:58.9]} 7... O-O {[%clk 0:03:02.9]} 8. Nf3 {[%clk 0:02:57.9]} 8...
e6 {[%clk 0:02:55.7]} 9. dxe6 {[%clk 0:02:55.9]} 9... fxe6 {[%clk 0:02:56.6]}
10. Qd6 {[%clk 0:02:55.3]} 10... axb5 {[%clk 0:02:32.8]} 11. Bxb5 {[%clk
0:02:52.9]} 11... Na6 {[%clk 0:02:24.3]} 12. O-O {[%clk 0:02:30.1]} 12... Bb7
{[%clk 0:02:14.2]} 13. Rd1 {[%clk 0:01:57.5]} 13... Ne8 {[%clk 0:01:26.8]} 14.
Qxd7 {[%clk 0:01:48.8]} 14... Qb8 {[%clk 0:01:16.3]} 15. Qxe6+ {[%clk 0:01:44]}
15... Kh8 {[%clk 0:01:16.1]} 16. e4 {[%clk 0:01:35.3]} 16... Nb4 {[%clk
0:00:53.7]} 17. Bg5 {[%clk 0:01:25.7]} 17... Nc7 {[%clk 0:00:39.4]} 18. Qd6
{[%clk 0:01:14.3]} 18... Nc2 {[%clk 0:00:31.3]} 19. Rac1 {[%clk 0:01:06.2]}
19... Nd4 {[%clk 0:00:30.3]} 20. Nxd4 {[%clk 0:01:05.5]} 20... cxd4 {[%clk
0:00:29.6]} 21. Rxd4 {[%clk 0:01:03]} 21... Nxb5 {[%clk 0:00:20.1]} 22. axb5
{[%clk 0:00:50.8]} 22... Qe8 {[%clk 0:00:14.8]} 23. Rc4 {[%clk 0:00:34.3]} 23...
Qf7 {[%clk 0:00:11.4]} 24. Qc5 {[%clk 0:00:12.2]} 24... Rac8 {[%clk 0:00:09.2]}
25. f3 {[%clk 0:00:10.6]} 25... Rxc5 {[%clk 0:00:08.2]} 26. Rxc5 {[%clk
0:00:06]} 26... Bd4+ {[%clk 0:00:07.9]} 27. Kh1 {[%clk 0:00:06.9]} 27... Bxc5
{[%clk 0:00:07.9]} 28. Bd2 {[%clk 0:00:06.6]} 28... Bd4 {[%clk 0:00:07.6]} 29.
Nd5 {[%clk 0:00:06.5]} 29... Bg7 {[%clk 0:00:07.4]} 30. Ne3 {[%clk 0:00:05]}
30... Rc8 {[%clk 0:00:06.2]} 31. Re1 {[%clk 0:00:04]} 31... Qb3 {[%clk
0:00:04.2]} 32. b6 {[%clk 0:00:04]} 32... Qxb2 {[%clk 0:00:03.5]} 33. Ba5 {[%clk
0:00:03]} 33... Rc1 {[%clk 0:00:02.8]} 34. Kg1 {[%clk 0:00:02]} 34... Rxe1+
{[%clk 0:00:02.4]} 35. Bxe1 {[%clk 0:00:02.6]} 35... Qc1 {[%clk 0:00:03.2]} 36.
Kf2 {[%clk 0:00:02]} 36... Bd4 {[%clk 0:00:03.8]} 37. Bd2 {[%clk 0:00:01.8]}
37... Qxd2+ {[%clk 0:00:04.2]} 38. Kg3 {[%clk 0:00:02.7]} 38... Qxe3 {[%clk
0:00:05]} 39. Kg4 {[%clk 0:00:03.2]} 39... Qe2 {[%clk 0:00:04.5]} 40. g3 {[%clk
0:00:02.4]} 40... Qf2 {[%clk 0:00:05.4]} 41. h4 {[%clk 0:00:02.4]} 41... Qg2
{[%clk 0:00:05.7]} 42. f4 {[%clk 0:00:02.5]} 42... Bf2 {[%clk 0:00:06.1]} 43.
Kg5 {[%clk 0:00:02.9]} 43... Qxg3+ {[%clk 0:00:07]} 44. Kf6 {[%clk 0:00:03.3]}
44... Qxh4+ {[%clk 0:00:07.1]} 45. Ke6 {[%clk 0:00:03.9]} 45... Bg3 {[%clk
0:00:07.3]} 46. Kd6 {[%clk 0:00:04.5]} 46... Qxf4+ {[%clk 0:00:07.7]} 47. Kd7
{[%clk 0:00:04.7]} 47... Qd6+ {[%clk 0:00:05.3]} 48. Ke8 {[%clk 0:00:05.3]}
48... Qe6+ {[%clk 0:00:04]} 49. Kd8 {[%clk 0:00:04.2]} 49... Bc6 {[%clk
0:00:04.9]} 50. b7 {[%clk 0:00:03.4]} 50... Qd7# {[%clk 0:00:05.5]} 0-1

[Event "Late-Titled-Tuesday-Blitz-May-28-2024"]
[Site "Chess.com"]
[Date "2024.05.28"]
[Round "9"]
[White "Grischuk"]
[Black "TigrVShlyape"]
[Result "1/2-1/2"]
[WhiteElo "3120"]
[BlackElo "2920"]
[TimeControl "180+1"]
[EndTime "15:44:58 PDT"]
[Termination "Game drawn by repetition"]

1. d4 {[%clk 0:03:00.9]} 1... f5 {[%clk 0:02:59.5]} 2. Nc3 {[%clk 0:02:58]} 2...
Nf6 {[%clk 0:02:59.4]} 3. Bg5 {[%clk 0:02:58.4]} 3... d5 {[%clk 0:02:59.7]} 4.
e3 {[%clk 0:02:56.9]} 4... e6 {[%clk 0:02:52.7]} 5. Nf3 {[%clk 0:02:56.7]} 5...
Be7 {[%clk 0:02:38.8]} 6. Bd3 {[%clk 0:02:56]} 6... O-O {[%clk 0:02:38]} 7. O-O
{[%clk 0:02:55.9]} 7... Nbd7 {[%clk 0:02:37.5]} 8. Ne2 {[%clk 0:02:54]} 8... h6
{[%clk 0:02:29.7]} 9. Bh4 {[%clk 0:02:16.2]} 9... g5 {[%clk 0:02:23.3]} 10. Bg3
{[%clk 0:02:15.1]} 10... Nh5 {[%clk 0:02:23.1]} 11. c4 {[%clk 0:02:07.3]} 11...
Nxg3 {[%clk 0:02:18.3]} 12. fxg3 {[%clk 0:01:40.9]} 12... g4 {[%clk 0:02:14]}
13. Nd2 {[%clk 0:01:34.5]} 13... c6 {[%clk 0:02:13.3]} 14. Nf4 {[%clk
0:01:34.2]} 14... Nf6 {[%clk 0:02:09.9]} 15. Ng6 {[%clk 0:01:27.9]} 15... Re8
{[%clk 0:02:08.5]} 16. Nxe7+ {[%clk 0:01:26.3]} 16... Qxe7 {[%clk 0:02:07.4]}
17. Qc2 {[%clk 0:01:16.8]} 17... Bd7 {[%clk 0:02:02.9]} 18. Rae1 {[%clk
0:01:13.6]} 18... Qg7 {[%clk 0:01:56.8]} 19. Nb1 {[%clk 0:01:12.5]} 19... h5
{[%clk 0:01:51.3]} 20. Nc3 {[%clk 0:01:12.6]} 20... Qg5 {[%clk 0:01:50.1]} 21.
Qc1 {[%clk 0:01:10.4]} 21... h4 {[%clk 0:01:47.1]} 22. Ne2 {[%clk 0:01:08.4]}
22... hxg3 {[%clk 0:01:44.4]} 23. hxg3 {[%clk 0:01:08.1]} 23... Kg7 {[%clk
0:01:37.3]} 24. Kf2 {[%clk 0:01:01.4]} 24... Rh8 {[%clk 0:01:33.6]} 25. Rh1
{[%clk 0:00:57.3]} 25... Rac8 {[%clk 0:01:07.9]} 26. c5 {[%clk 0:00:36.4]} 26...
Rce8 {[%clk 0:00:54.8]} 27. Rxh8 {[%clk 0:00:20.4]} 27... Rxh8 {[%clk
0:00:54.2]} 28. Rh1 {[%clk 0:00:21.1]} 28... Rxh1 {[%clk 0:00:50.7]} 29. Qxh1
{[%clk 0:00:22]} 29... Ng8 {[%clk 0:00:28.5]} 30. Qh4 {[%clk 0:00:20.5]} 30...
Qf6 {[%clk 0:00:21.9]} 31. Nf4 {[%clk 0:00:19.3]} 31... Be8 {[%clk 0:00:21.7]}
32. b4 {[%clk 0:00:16.1]} 32... Ne7 {[%clk 0:00:20.6]} 33. a4 {[%clk 0:00:15.5]}
33... a6 {[%clk 0:00:18.4]} 34. Ke1 {[%clk 0:00:14.6]} 34... Qxh4 {[%clk
0:00:11]} 35. gxh4 {[%clk 0:00:15.5]} 35... Kf6 {[%clk 0:00:09.7]} 36. g3 {[%clk
0:00:14.3]} 36... Ng6 {[%clk 0:00:06.4]} 37. Kd2 {[%clk 0:00:10.9]} 37... Nxf4
{[%clk 0:00:05.7]} 38. exf4 {[%clk 0:00:11.1]} 38... Bd7 {[%clk 0:00:05.9]} 39.
Kc3 {[%clk 0:00:11]} 39... Bc8 {[%clk 0:00:02.1]} 40. b5 {[%clk 0:00:10.4]}
40... a5 {[%clk 0:00:02]} 41. b6 {[%clk 0:00:07.8]} 41... Kg6 {[%clk 0:00:02]}
42. Kd2 {[%clk 0:00:07.4]} 42... Kf6 {[%clk 0:00:02.4]} 43. Ke3 {[%clk
0:00:07.7]} 43... Kg6 {[%clk 0:00:02.8]} 44. Be2 {[%clk 0:00:06.8]} 44... Kf6
{[%clk 0:00:03]} 45. Bd1 {[%clk 0:00:06.3]} 45... Kg6 {[%clk 0:00:03.4]} 46. Bc2
{[%clk 0:00:05.9]} 46... Kf6 {[%clk 0:00:03.8]} 47. Bd3 {[%clk 0:00:06]} 47...
Kg6 {[%clk 0:00:04.1]} 48. Be2 {[%clk 0:00:06.6]} 48... Kf6 {[%clk 0:00:04.5]}
49. Bd1 {[%clk 0:00:06]} 49... Kg6 {[%clk 0:00:04.9]} 50. Bc2 {[%clk 0:00:06.5]}
50... Kf6 {[%clk 0:00:05.4]} 51. Bd3 {[%clk 0:00:07.1]} 1/2-1/2

[Event "Late-Titled-Tuesday-Blitz-May-28-2024"]
[Site "Chess.com"]
[Date "2024.05.28"]
[Round "9"]
[White "nihalsarin"]
[Black "Hikaru"]
[Result "1/2-1/2"]
[WhiteElo "3252"]
[BlackElo "3224"]
[TimeControl "180+1"]
[EndTime "15:45:01 PDT"]
[Termination "Game drawn by agreement"]

1. d4 {[%clk 0:02:52.8]} 1... Nf6 {[%clk 0:02:57.9]} 2. c4 {[%clk 0:02:49.6]}
2... e6 {[%clk 0:02:58.2]} 3. Nf3 {[%clk 0:02:48.2]} 3... Bb4+ {[%clk
0:02:56.8]} 4. Bd2 {[%clk 0:02:47]} 4... c5 {[%clk 0:02:57.1]} 5. e3 {[%clk
0:02:46.4]} 5... b6 {[%clk 0:02:56.7]} 6. Bd3 {[%clk 0:02:45.9]} 6... Bb7 {[%clk
0:02:56.7]} 7. O-O {[%clk 0:02:46.6]} 7... O-O {[%clk 0:02:56.6]} 8. Bxb4 {[%clk
0:02:44.4]} 8... cxb4 {[%clk 0:02:57.5]} 9. a3 {[%clk 0:02:45.1]} 9... Nc6
{[%clk 0:02:56.6]} 10. d5 {[%clk 0:02:37.4]} 10... exd5 {[%clk 0:02:42.2]} 11.
cxd5 {[%clk 0:02:38.3]} 11... Nb8 {[%clk 0:02:41.7]} 12. e4 {[%clk 0:02:34.8]}
12... bxa3 {[%clk 0:02:41.4]} 13. Nxa3 {[%clk 0:02:35.7]} 13... d6 {[%clk
0:02:39.5]} 14. Re1 {[%clk 0:02:22.1]} 14... a5 {[%clk 0:02:14.3]} 15. Nd4
{[%clk 0:02:20.5]} 15... Nbd7 {[%clk 0:02:12.3]} 16. Bb5 {[%clk 0:02:10.7]}
16... Nc5 {[%clk 0:02:12.1]} 17. Bc6 {[%clk 0:02:10.6]} 17... Bxc6 {[%clk
0:01:47.5]} 18. dxc6 {[%clk 0:01:56.2]} 18... Nfxe4 {[%clk 0:01:44.5]} 19. Nab5
{[%clk 0:01:56.7]} 19... d5 {[%clk 0:01:25.3]} 20. f3 {[%clk 0:01:34.8]} 20...
Nf6 {[%clk 0:01:01.1]} 21. Qd2 {[%clk 0:01:30.7]} 21... g6 {[%clk 0:00:54.3]}
22. Ra3 {[%clk 0:01:23.7]} 22... Ne8 {[%clk 0:00:46.5]} 23. Qf4 {[%clk
0:01:10.4]} 23... Ng7 {[%clk 0:00:41.3]} 24. c7 {[%clk 0:00:40]} 24... Qd7
{[%clk 0:00:41.1]} 25. Qd6 {[%clk 0:00:40.7]} 25... Rfc8 {[%clk 0:00:13.4]} 26.
Qxb6 {[%clk 0:00:18.6]} 26... Nce6 {[%clk 0:00:10.4]} 27. Rc3 {[%clk 0:00:18.8]}
27... a4 {[%clk 0:00:08.8]} 28. Qc6 {[%clk 0:00:14.6]} 28... Qxc6 {[%clk
0:00:06.2]} 29. Nxc6 {[%clk 0:00:13.3]} 29... Nf5 {[%clk 0:00:06.8]} 30. g4
{[%clk 0:00:13]} 30... d4 {[%clk 0:00:06.8]} 31. Rd3 {[%clk 0:00:08.5]} 31...
Nxc7 {[%clk 0:00:04.1]} 32. gxf5 {[%clk 0:00:05.7]} 32... Nxb5 {[%clk
0:00:04.2]} 33. Ne7+ {[%clk 0:00:06.5]} 33... Kg7 {[%clk 0:00:04.9]} 34. Nxc8
{[%clk 0:00:07.2]} 34... Rxc8 {[%clk 0:00:05.7]} 35. Re5 {[%clk 0:00:07.9]}
35... Rb8 {[%clk 0:00:05.8]} 36. fxg6 {[%clk 0:00:07.8]} 36... hxg6 {[%clk
0:00:05.9]} 37. Rc5 {[%clk 0:00:07.1]} 37... Rb7 {[%clk 0:00:05.8]} 38. Kg2
{[%clk 0:00:07.3]} 38... Nd6 {[%clk 0:00:05.2]} 39. Rxd4 {[%clk 0:00:05.4]}
39... Rxb2+ {[%clk 0:00:05.8]} 40. Kh3 {[%clk 0:00:06.2]} 40... Nf5 {[%clk
0:00:06.3]} 41. Rxa4 {[%clk 0:00:06.9]} 41... Rb3 {[%clk 0:00:06]} 42. Rf4
{[%clk 0:00:07]} 42... Rd3 {[%clk 0:00:05.1]} 43. Ra5 {[%clk 0:00:07]} 43... Nd4
{[%clk 0:00:03.1]} 44. Kg3 {[%clk 0:00:02.7]} 44... Ne2+ {[%clk 0:00:03.3]} 45.
Kg4 {[%clk 0:00:03.4]} 45... Nxf4 {[%clk 0:00:03.7]} 46. Kxf4 {[%clk 0:00:04.3]}
46... Rd4+ {[%clk 0:00:04.3]} 47. Kg3 {[%clk 0:00:04.8]} 47... Rb4 {[%clk
0:00:05.2]} 48. Rc5 {[%clk 0:00:04.8]} 48... Rb7 {[%clk 0:00:05.7]} 49. Rc4
{[%clk 0:00:04.9]} 1/2-1/2

[Event "Late-Titled-Tuesday-Blitz-May-28-2024"]
[Site "Chess.com"]
[Date "2024.05.28"]
[Round "9"]
[White "Byniolus"]
[Black "jcibarra"]
[Result "1-0"]
[WhiteElo "2746"]
[BlackElo "2886"]
[TimeControl "180+1"]
[EndTime "15:45:01 PDT"]
[Termination "Byniolus won on time"]

1. d4 {[%clk 0:03:00.9]} 1... d6 {[%clk 0:02:56.7]} 2. Nf3 {[%clk 0:03:01]} 2...
h6 {[%clk 0:02:52.8]} 3. c4 {[%clk 0:02:59.5]} 3... Nf6 {[%clk 0:02:51.3]} 4.
Nc3 {[%clk 0:02:59.6]} 4... Bf5 {[%clk 0:02:50.8]} 5. g3 {[%clk 0:02:58]} 5...
Ne4 {[%clk 0:02:50.3]} 6. Nxe4 {[%clk 0:02:56.7]} 6... Bxe4 {[%clk 0:02:51.2]}
7. Bg2 {[%clk 0:02:57.3]} 7... g6 {[%clk 0:02:49.9]} 8. O-O {[%clk 0:02:53]}
8... Bg7 {[%clk 0:02:49.6]} 9. Qb3 {[%clk 0:02:48.4]} 9... O-O {[%clk
0:02:48.6]} 10. Rd1 {[%clk 0:02:47.5]} 10... b6 {[%clk 0:02:47.3]} 11. Qe3
{[%clk 0:02:42.6]} 11... d5 {[%clk 0:02:44.9]} 12. b3 {[%clk 0:02:39.8]} 12...
c5 {[%clk 0:02:41.8]} 13. Bb2 {[%clk 0:02:31]} 13... Nc6 {[%clk 0:02:41.2]} 14.
cxd5 {[%clk 0:02:29.4]} 14... Bxd5 {[%clk 0:02:24.5]} 15. Rd2 {[%clk 0:02:16.2]}
15... e6 {[%clk 0:01:02.3]} 16. dxc5 {[%clk 0:02:10.4]} 16... Bxb2 {[%clk
0:01:03.2]} 17. Rxb2 {[%clk 0:02:09.7]} 17... Qf6 {[%clk 0:01:01.3]} 18. Rbb1
{[%clk 0:01:40.3]} 18... bxc5 {[%clk 0:00:43.9]} 19. Qxc5 {[%clk 0:01:31.9]}
19... Rfc8 {[%clk 0:00:38.5]} 20. Rc1 {[%clk 0:01:23.7]} 20... Kg7 {[%clk
0:00:29.4]} 21. h4 {[%clk 0:01:20.5]} 21... a5 {[%clk 0:00:24.7]} 22. Qc3 {[%clk
0:00:47.3]} 22... e5 {[%clk 0:00:20.2]} 23. Qe3 {[%clk 0:00:25.3]} 23... Re8
{[%clk 0:00:20.2]} 24. Rd1 {[%clk 0:00:19.7]} 24... Rad8 {[%clk 0:00:20.2]} 25.
Rac1 {[%clk 0:00:19.7]} 25... Rd6 {[%clk 0:00:08.5]} 26. Rc5 {[%clk 0:00:15]}
26... Red8 {[%clk 0:00:07.9]} 27. Rdc1 {[%clk 0:00:15.2]} 27... e4 {[%clk
0:00:04.5]} 28. Nd2 {[%clk 0:00:13.4]} 28... Nd4 {[%clk 0:00:03.9]} 29. Bxe4
{[%clk 0:00:08.2]} 29... Re8 {[%clk 0:00:03.9]} 30. f3 {[%clk 0:00:07.8]} 30...
Qe5 {[%clk 0:00:02.9]} 31. Kf2 {[%clk 0:00:07.6]} 31... Nf5 {[%clk 0:00:02.9]}
32. Qc3 {[%clk 0:00:04.3]} 32... Qxc3 {[%clk 0:00:01.2]} 33. R1xc3 {[%clk
0:00:05.2]} 33... Be6 {[%clk 0:00:01.1]} 34. Bd3 {[%clk 0:00:04.8]} 34... Rd7
{[%clk 0:00:01.2]} 35. Rxa5 {[%clk 0:00:03.9]} 35... Red8 {[%clk 0:00:01.5]} 36.
Ne4 {[%clk 0:00:03.8]} 36... Nd4 {[%clk 0:00:01.8]} 37. Rac5 {[%clk 0:00:03.3]}
37... Ra7 {[%clk 0:00:01.3]} 38. a4 {[%clk 0:00:03.1]} 38... Nf5 {[%clk
0:00:01.9]} 39. Rc7 {[%clk 0:00:03.5]} 39... Ra5 {[%clk 0:00:01.6]} 40. Nc5
{[%clk 0:00:03.3]} 40... Nd4 {[%clk 0:00:01.8]} 41. Nxe6+ {[%clk 0:00:03.5]}
41... Nxe6 {[%clk 0:00:02.7]} 42. Rb7 {[%clk 0:00:04.1]} 42... Re5 {[%clk
0:00:02.4]} 43. Bc4 {[%clk 0:00:04]} 43... Nc5 {[%clk 0:00:02.4]} 44. Rxf7+
{[%clk 0:00:04.3]} 44... Kh8 {[%clk 0:00:02.2]} 45. Rc7 {[%clk 0:00:05.2]} 45...
Rde8 {[%clk 0:00:02.4]} 46. e4 {[%clk 0:00:05]} 46... Rd8 {[%clk 0:00:02.3]} 47.
Rc2 {[%clk 0:00:05.6]} 47... Re7 {[%clk 0:00:01]} 48. Rxe7 {[%clk 0:00:05.3]}
48... Nd3+ {[%clk 0:00:01.5]} 49. Bxd3 {[%clk 0:00:05.5]} 1-0

[Event "Late-Titled-Tuesday-Blitz-May-28-2024"]
[Site "Chess.com"]
[Date "2024.05.28"]
[Round "9"]
[White "MikeSailer"]
[Black "BenchGM"]
[Result "0-1"]
[WhiteElo "2149"]
[BlackElo "2246"]
[TimeControl "180+1"]
[EndTime "15:45:02 PDT"]
[Termination "BenchGM won on time"]

1. d4 {[%clk 0:03:00.5]} 1... Nf6 {[%clk 0:02:59.7]} 2. Nf3 {[%clk 0:02:59.9]}
2... b6 {[%clk 0:02:59.7]} 3. Bf4 {[%clk 0:03:00.3]} 3... Bb7 {[%clk 0:03:00.2]}
4. e3 {[%clk 0:03:01.1]} 4... g6 {[%clk 0:03:00.2]} 5. Be2 {[%clk 0:03:01.7]}
5... Bg7 {[%clk 0:03:00.7]} 6. O-O {[%clk 0:03:02.3]} 6... O-O {[%clk
0:03:01.3]} 7. h3 {[%clk 0:03:03.1]} 7... d6 {[%clk 0:03:01.9]} 8. c4 {[%clk
0:03:03.5]} 8... Nbd7 {[%clk 0:03:02.4]} 9. Nc3 {[%clk 0:03:04.1]} 9... Re8
{[%clk 0:03:02.9]} 10. a4 {[%clk 0:03:04.2]} 10... a5 {[%clk 0:03:01.8]} 11. Nb5
{[%clk 0:03:04.5]} 11... e5 {[%clk 0:03:01.3]} 12. Bh2 {[%clk 0:02:59.4]} 12...
Ne4 {[%clk 0:02:58.2]} 13. Re1 {[%clk 0:02:55.9]} 13... Rc8 {[%clk 0:02:56.1]}
14. Na7 {[%clk 0:02:39.9]} 14... Ra8 {[%clk 0:02:55.6]} 15. Nb5 {[%clk
0:02:40.4]} 15... Rc8 {[%clk 0:02:56]} 16. Nd2 {[%clk 0:02:23.6]} 16... Nxd2
{[%clk 0:02:51.5]} 17. Qxd2 {[%clk 0:02:23.5]} 17... Qg5 {[%clk 0:02:51.6]} 18.
Bg4 {[%clk 0:01:49.9]} 18... f5 {[%clk 0:02:49.2]} 19. f4 {[%clk 0:01:49.6]}
19... exf4 {[%clk 0:02:43.9]} 20. Bxf4 {[%clk 0:01:49.1]} 20... Qh4 {[%clk
0:02:30.9]} 21. Bd1 {[%clk 0:01:23.7]} 21... Nf6 {[%clk 0:02:30.5]} 22. d5
{[%clk 0:01:16.2]} 22... Ne4 {[%clk 0:02:29.4]} 23. Qe2 {[%clk 0:01:07]} 23...
Ba6 {[%clk 0:02:19.1]} 24. Bc2 {[%clk 0:01:06]} 24... Bxb5 {[%clk 0:02:18.7]}
25. axb5 {[%clk 0:01:05.9]} 25... Nc5 {[%clk 0:02:18.1]} 26. Qf3 {[%clk
0:00:53.4]} 26... Bxb2 {[%clk 0:02:16.3]} 27. Rad1 {[%clk 0:00:48.5]} 27... a4
{[%clk 0:02:15.6]} 28. e4 {[%clk 0:00:41.9]} 28... fxe4 {[%clk 0:02:05.7]} 29.
Bxe4 {[%clk 0:00:40.7]} 29... a3 {[%clk 0:02:04.1]} 30. g3 {[%clk 0:00:35.3]}
30... Qf6 {[%clk 0:02:00.6]} 31. Bb1 {[%clk 0:00:28.2]} 31... Bd4+ {[%clk
0:01:57.2]} 32. Kg2 {[%clk 0:00:26.5]} 32... Bc3 {[%clk 0:01:48.5]} 33. Rf1
{[%clk 0:00:20.1]} 33... Qg7 {[%clk 0:01:42.9]} 34. Qg4 {[%clk 0:00:19.8]} 34...
Ra8 {[%clk 0:01:31.9]} 35. Ba2 {[%clk 0:00:19.7]} 35... Be5 {[%clk 0:01:28.1]}
36. Bxe5 {[%clk 0:00:17.4]} 36... Qxe5 {[%clk 0:01:29]} 37. Rde1 {[%clk
0:00:15.5]} 37... Qxe1 {[%clk 0:01:20.3]} 38. Rxe1 {[%clk 0:00:16]} 38... Rxe1
{[%clk 0:01:20.8]} 39. h4 {[%clk 0:00:09.9]} 39... Rae8 {[%clk 0:01:16]} 40. Qg5
{[%clk 0:00:02.9]} 40... R8e2+ {[%clk 0:01:06.3]} 41. Kh3 {[%clk 0:00:03.2]}
41... Re7 {[%clk 0:00:37.5]} 42. h5 {[%clk 0:00:02]} 42... Ne4 {[%clk
0:00:34.1]} 43. Qf4 {[%clk 0:00:01.5]} 43... g5 {[%clk 0:00:28.7]} 44. Qf5
{[%clk 0:00:01.5]} 44... Re2 {[%clk 0:00:22.2]} 45. Kg4 {[%clk 0:00:02.2]} 45...
Nf2+ {[%clk 0:00:20.4]} 46. Kf3 {[%clk 0:00:02.7]} 46... R7e3+ {[%clk
0:00:19.5]} 47. Kg2 {[%clk 0:00:02.4]} 47... Ne4+ {[%clk 0:00:19]} 48. Kf1
{[%clk 0:00:02.3]} 48... Rf2+ {[%clk 0:00:17.5]} 49. Qxf2 {[%clk 0:00:02.1]}
49... Nxf2 {[%clk 0:00:18.4]} 50. Kxf2 {[%clk 0:00:02.8]} 50... Rc3 {[%clk
0:00:18.4]} 0-1

[Event "Late-Titled-Tuesday-Blitz-May-28-2024"]
[Site "Chess.com"]
[Date "2024.05.28"]
[Round "9"]
[White "rdarruda"]
[Black "Chaubunagungamaug1"]
[Result "0-1"]
[WhiteElo "2545"]
[BlackElo "2475"]
[TimeControl "180+1"]
[EndTime "15:45:06 PDT"]
[Termination "Chaubunagungamaug1 won on time"]

1. d4 {[%clk 0:02:47.7]} 1... Nf6 {[%clk 0:02:57.5]} 2. Nf3 {[%clk 0:02:46.9]}
2... d5 {[%clk 0:02:57]} 3. c4 {[%clk 0:02:46.1]} 3... e6 {[%clk 0:02:56]} 4.
Nc3 {[%clk 0:02:45.2]} 4... c6 {[%clk 0:02:55.4]} 5. e3 {[%clk 0:02:44.5]} 5...
Nbd7 {[%clk 0:02:54.6]} 6. Bd3 {[%clk 0:02:44.4]} 6... dxc4 {[%clk 0:02:54.8]}
7. Bxc4 {[%clk 0:02:44]} 7... b5 {[%clk 0:02:54.7]} 8. Bd3 {[%clk 0:02:40.9]}
8... b4 {[%clk 0:02:54.1]} 9. Ne4 {[%clk 0:02:39.8]} 9... Nxe4 {[%clk
0:02:53.4]} 10. Bxe4 {[%clk 0:02:40.3]} 10... Bb7 {[%clk 0:02:53.4]} 11. O-O
{[%clk 0:02:38.1]} 11... Bd6 {[%clk 0:02:52.6]} 12. b3 {[%clk 0:02:35.5]} 12...
O-O {[%clk 0:02:49.4]} 13. Bb2 {[%clk 0:02:35.4]} 13... Rc8 {[%clk 0:02:47.3]}
14. Rc1 {[%clk 0:02:33.7]} 14... Qe7 {[%clk 0:02:29]} 15. Ne5 {[%clk 0:02:29.4]}
15... Nf6 {[%clk 0:02:02.4]} 16. Bf3 {[%clk 0:01:52.3]} 16... Nd5 {[%clk
0:01:12.9]} 17. Nc4 {[%clk 0:01:44.9]} 17... Bb8 {[%clk 0:01:11]} 18. e4 {[%clk
0:01:38.5]} 18... Nf6 {[%clk 0:00:52.5]} 19. Qe2 {[%clk 0:01:23.4]} 19... c5
{[%clk 0:00:42.4]} 20. Rfd1 {[%clk 0:01:04.7]} 20... Rfd8 {[%clk 0:00:32]} 21.
dxc5 {[%clk 0:01:01.1]} 21... Rxc5 {[%clk 0:00:21.6]} 22. Rxd8+ {[%clk
0:00:59.8]} 22... Qxd8 {[%clk 0:00:22.5]} 23. Rd1 {[%clk 0:00:59.2]} 23... Qe7
{[%clk 0:00:22.7]} 24. e5 {[%clk 0:00:55.7]} 24... Bxf3 {[%clk 0:00:19.8]} 25.
Qxf3 {[%clk 0:00:56.6]} 25... Nd5 {[%clk 0:00:18.9]} 26. h3 {[%clk 0:00:45.8]}
26... h6 {[%clk 0:00:18.1]} 27. Qe4 {[%clk 0:00:45.3]} 27... Qg5 {[%clk
0:00:17.8]} 28. g3 {[%clk 0:00:38.3]} 28... Rc8 {[%clk 0:00:15.9]} 29. Kg2
{[%clk 0:00:35.4]} 29... Bc7 {[%clk 0:00:14.9]} 30. Rd3 {[%clk 0:00:25.4]} 30...
Bb6 {[%clk 0:00:14.7]} 31. Rf3 {[%clk 0:00:17.2]} 31... Rc7 {[%clk 0:00:13.3]}
32. Nd6 {[%clk 0:00:17]} 32... g6 {[%clk 0:00:10.8]} 33. Ne8 {[%clk 0:00:16.3]}
33... Re7 {[%clk 0:00:10]} 34. Nf6+ {[%clk 0:00:16.2]} 34... Nxf6 {[%clk
0:00:10]} 35. exf6 {[%clk 0:00:17.1]} 35... Re8 {[%clk 0:00:09.6]} 36. Qc6
{[%clk 0:00:14.1]} 36... Rd8 {[%clk 0:00:09.3]} 37. h4 {[%clk 0:00:14]} 37...
Qd2 {[%clk 0:00:09.6]} 38. Be5 {[%clk 0:00:11.9]} 38... h5 {[%clk 0:00:07.6]}
39. Qb7 {[%clk 0:00:03.5]} 39... Qd5 {[%clk 0:00:06.7]} 40. Qe7 {[%clk
0:00:03.1]} 40... Qxe5 {[%clk 0:00:06.7]} 41. Rf4 {[%clk 0:00:01.3]} 41... Qd5+
{[%clk 0:00:06.7]} 42. Kh2 {[%clk 0:00:01]} 42... Qd6 {[%clk 0:00:06.7]} 43. Qb7
{[%clk 0:00:01]} 43... Qc7 {[%clk 0:00:06.3]} 44. Qf3 {[%clk 0:00:01.5]} 44...
Qc5 {[%clk 0:00:05.7]} 45. Qe2 {[%clk 0:00:01.7]} 45... Rd4 {[%clk 0:00:05.3]}
46. Qa6 {[%clk 0:00:02.6]} 46... Rxf4 {[%clk 0:00:05.5]} 47. gxf4 {[%clk
0:00:03]} 47... Qxf2+ {[%clk 0:00:05.8]} 48. Kh3 {[%clk 0:00:02.9]} 48... Qf3+
{[%clk 0:00:06.4]} 49. Kh2 {[%clk 0:00:03.1]} 49... Qxf4+ {[%clk 0:00:07.3]} 50.
Kg2 {[%clk 0:00:03.1]} 50... Qg4+ {[%clk 0:00:07.9]} 0-1